bitfinex-derivatives/quotes_BTCF0:USTF0_20230702
["timestamp","ask_amount","ask_price","bid_price","bid_amount"]
[1688284963911,0.05,30537.0,30534.0,0.87935617]
[1688284964110,0.05,30537.0,30536.0,0.0264452]
[1688284964322,0.05,30537.0,30536.0,0.03849945]
[1688284966325,0.13469805,30537.0,30536.0,0.03849945]
[1688284966519,0.13469805,30537.0,30536.0,0.05672914]
[1688284968313,0.05,30537.0,30536.0,0.05672914]
[1688284968729,0.2024563,30537.0,30536.0,0.05672914]
[1688284971135,0.2024563,30537.0,30536.0,0.03849945]
[1688284971425,0.2498869,30537.0,30536.0,0.03849945]
[1688284971826,0.2498869,30537.0,30536.0,0.05672914]
[1688284973831,0.2498869,30537.0,30536.0,0.03849945]
[1688284975630,0.2498869,30537.0,30536.0,0.05672914]
[1688284977633,0.2498869,30537.0,30536.0,0.03849945]
[1688284977930,0.2498869,30537.0,30536.0,0.05672914]
[1688284978132,0.2498869,30537.0,30536.0,0.03849945]
[1688284979333,0.2498869,30537.0,30536.0,0.04315149]
[1688284979734,0.2498869,30537.0,30536.0,0.06138118]
[1688284981729,0.30428241,30537.0,30536.0,0.02430204]
[1688284982038,0.30428241,30537.0,30536.0,0.06138118]
[1688284984237,0.30428241,30537.0,30536.0,0.04315149]
[1688284984439,0.30428241,30537.0,30536.0,0.06138118]
[1688284984643,0.2498869,30537.0,30536.0,0.06138118]
[1688284989953,0.2498869,30537.0,30536.0,0.04315149]
[1688284990452,0.2498869,30537.0,30536.0,0.02430204]
[1688284990648,0.16518885,30537.0,30536.0,0.02430204]
[1688284991253,0.16518885,30537.0,30536.0,0.06138118]
[1688284991656,0.16518885,30537.0,30536.0,0.04315149]
[1688284993452,0.16518885,30537.0,30536.0,0.06138118]
[1688284994053,0.16518885,30537.0,30536.0,0.04315149]
[1688284994451,0.16518885,30537.0,30536.0,0.06138118]
[1688284996446,0.16518885,30537.0,30536.0,0.04315149]
[1688285000360,0.16518885,30537.0,30536.0,0.02430204]
[1688285000655,0.24988738,30537.0,30536.0,0.02430204]
[1688285008465,0.26953638,30537.0,30536.0,0.02430204]
[1688285015056,0.63033638,30537.0,30536.0,0.02430204]
[1688285023072,0.26953638,30537.0,30536.0,0.02430204]
[1688285043180,0.63033638,30537.0,30533.0,0.07590623]
[1688285043390,0.3608,30534.0,30533.0,0.07590623]
[1688285043595,0.58033838,30534.0,30533.0,0.07590623]
[1688285056298,0.58033838,30534.0,30533.0,0.07578568]
[1688285063401,0.58033838,30534.0,30533.0,0.09463513]
[1688285063604,0.58033838,30534.0,30533.0,0.07578568]
[1688285071207,0.21953838,30534.0,30533.0,0.07578568]
[1688285073799,0.21953838,30534.0,30533.0,0.09463513]
[1688285074303,0.21953838,30534.0,30533.0,0.07578568]
[1688285082322,0.19988738,30534.0,30533.0,0.07578568]
[1688285083913,0.22666649,30534.0,30533.0,0.07578568]
[1688285085815,0.22666649,30534.0,30533.0,0.43658568]
[1688285086113,0.22666649,30534.0,30533.0,0.47366482]
[1688285086114,0.19988738,30534.0,30533.0,0.47366482]
[1688285086316,0.15245678,30534.0,30533.0,0.47366482]
[1688285086519,0.19988738,30536.0,30533.0,0.47366482]
[1688285086819,0.19988738,30536.0,30535.0,0.01965]
[1688285087318,0.19988738,30536.0,30535.0,0.03849945]
[1688285087907,0.19988738,30536.0,30535.0,0.05672914]
[1688285088515,0.19988738,30536.0,30535.0,0.03849945]
[1688285088710,0.19988738,30536.0,30535.0,0.05672914]
[1688285089216,0.19988738,30536.0,30535.0,0.03849945]
[1688285089403,0.19988738,30536.0,30535.0,0.05672914]
[1688285089611,0.19988738,30536.0,30535.0,0.03849945]
[1688285089918,0.19988738,30536.0,30535.0,0.05672914]
[1688285090519,0.19988738,30536.0,30535.0,0.03849945]
[1688285090720,0.19988738,30536.0,30535.0,0.05672914]
[1688285091017,0.19988738,30536.0,30535.0,0.03849945]
[1688285091423,0.19988738,30536.0,30535.0,0.05672914]
[1688285091616,0.19988738,30536.0,30535.0,0.03849945]
[1688285091820,0.19988738,30536.0,30535.0,0.05672914]
[1688285092016,0.19988738,30536.0,30535.0,0.03849945]
[1688285093021,0.19988738,30536.0,30535.0,0.05672914]
[1688285093424,0.19988738,30536.0,30535.0,0.03849945]
[1688285094723,0.19988738,30536.0,30535.0,0.05672914]
[1688285095114,0.19988738,30536.0,30535.0,0.03849945]
[1688285095315,0.19988738,30536.0,30535.0,0.05672914]
[1688285097327,0.19988738,30536.0,30535.0,0.03849945]
[1688285097731,0.19988738,30536.0,30535.0,0.05672914]
[1688285105631,0.19988738,30536.0,30535.0,0.03849945]
[1688285107137,0.19988738,30536.0,30535.0,0.05672914]
[1688285108327,0.19988738,30536.0,30535.0,0.03849945]
[1688285109030,0.19988738,30536.0,30535.0,0.05672914]
[1688285109235,0.19988738,30536.0,30535.0,0.03849945]
[1688285109438,0.19988738,30536.0,30535.0,0.05672914]
[1688285109939,0.19988738,30536.0,30535.0,0.03849945]
[1688285110737,0.21953738,30536.0,30535.0,0.03849945]
[1688285112941,0.19988738,30536.0,30535.0,0.03849945]
[1688285113342,0.19988738,30536.0,30535.0,0.05672914]
[1688285128150,0.19988738,30536.0,30535.0,0.41752914]
[1688285131152,0.19988738,30536.0,30535.0,0.05672914]
[1688285131352,0.19988738,30536.0,30535.0,0.41752914]
[1688285131854,0.19988738,30536.0,30535.0,0.05672914]
[1688285132049,0.19988738,30536.0,30535.0,0.41752914]
[1688285139064,0.19988738,30536.0,30535.0,0.05672914]
[1688285139261,0.19988738,30536.0,30535.0,0.41752914]
[1688285139964,0.19988738,30536.0,30535.0,0.05672914]
[1688285140157,0.19988738,30536.0,30535.0,0.41752914]
[1688285148069,0.19988738,30536.0,30535.0,0.05672914]
[1688285148266,0.19988738,30536.0,30535.0,0.41752914]
[1688285152467,0.19988738,30536.0,30535.0,0.96102914]
[1688285156475,0.19988738,30536.0,30535.0,0.60022914]
[1688285156668,0.19988738,30536.0,30535.0,0.96102914]
[1688285157877,0.19988738,30536.0,30535.0,0.60022914]
[1688285158071,0.19988738,30536.0,30535.0,0.96102914]
[1688285165371,0.32760132,30536.0,30535.0,0.96102914]
[1688285165679,0.44279017,30536.0,30535.0,0.96102914]
[1688285165873,0.5274887,30536.0,30535.0,0.96102914]
[1688285166476,0.5274887,30536.0,30535.0,1.17342914]
[1688285167080,0.19988738,30536.0,30535.0,1.17342914]
[1688285167279,0.45971914,30536.0,30535.0,1.17342914]
[1688285167589,0.52747739,30536.0,30535.0,1.17342914]
[1688285169885,0.52747739,30536.0,30535.0,0.81262914]
[1688285170085,0.52747739,30536.0,30535.0,1.17342914]
[1688285173081,0.52747739,30536.0,30535.0,1.15519945]
[1688285174083,0.52747739,30536.0,30535.0,0.79439945]
[1688285174289,0.19988738,30536.0,30535.0,1.15519945]
[1688285174682,0.19988738,30536.0,30535.0,1.17342914]
[1688285176496,0.19988738,30536.0,30535.0,0.81262914]
[1688285176697,0.19988738,30536.0,30535.0,1.17342914]
[1688285178995,0.5274685,30536.0,30535.0,1.17342914]
[1688285186902,0.19988738,30536.0,30535.0,1.17342914]
[1688285187397,0.52748384,30536.0,30535.0,1.17342914]
[1688285188102,0.19988738,30536.0,30535.0,1.17342914]
[1688285188897,0.52749197,30536.0,30535.0,1.17342914]
[1688285191801,0.52749197,30536.0,30535.0,0.81262914]
[1688285192004,0.52749197,30536.0,30535.0,1.17342914]
[1688285192805,0.19988738,30536.0,30535.0,1.17342914]
[1688285199205,0.19988738,30536.0,30535.0,0.81262914]
[1688285199500,0.19988738,30536.0,30535.0,1.17342914]
[1688285202310,0.19988738,30536.0,30535.0,1.15519945]
[1688285202807,0.21953638,30536.0,30535.0,1.13635]
[1688285203209,0.19988738,30536.0,30535.0,1.13635]
[1688285203410,0.19988738,30536.0,30535.0,1.15519945]
[1688285204013,0.21953638,30536.0,30535.0,1.13635]
[1688285204313,0.21953638,30536.0,30535.0,1.15519945]
[1688285205503,0.21953638,30536.0,30535.0,1.17342914]
[1688285205702,0.21953638,30536.0,30535.0,1.15519945]
[1688285208414,0.21953638,30536.0,30535.0,1.17342914]
[1688285208818,0.21953638,30536.0,30535.0,1.15519945]
[1688285209917,0.21953638,30536.0,30535.0,0.79439945]
[1688285210317,0.21953638,30536.0,30535.0,0.81262914]
[1688285210618,0.21953638,30536.0,30535.0,0.79439945]
[1688285211320,0.21953638,30536.0,30535.0,0.81262914]
[1688285211619,0.21953638,30536.0,30535.0,0.79439945]
[1688285212720,0.21953638,30536.0,30535.0,0.81262914]
[1688285213222,0.21953638,30536.0,30535.0,0.79439945]
[1688285216421,0.21953638,30536.0,30535.0,0.77555]
[1688285218322,0.21953638,30536.0,30535.0,0.79439945]
[1688285225528,0.21953638,30536.0,30535.0,0.77555]
[1688285226618,0.21953638,30536.0,30535.0,0.79439945]
[1688285232331,0.21953638,30536.0,30535.0,0.25089945]
[1688285232643,0.21953638,30536.0,30535.0,0.23205]
[1688285233430,0.43003638,30536.0,30535.0,0.23205]
[1688285236947,0.79153638,30536.0,30533.0,0.07578568]
[1688285237139,0.4216,30534.0,30533.0,0.02677923]
[1688285237337,0.4216,30534.0,30531.0,0.019651]
[1688285237338,0.0566,30532.0,30531.0,0.019651]
[1688285237540,0.70374751,30532.0,30530.0,0.02014426]
[1688285237738,0.27845825,30531.0,30530.0,0.02014426]
[1688285238030,0.38280878,30531.0,30530.0,0.02014426]
[1688285238355,0.39538169,30531.0,30530.0,1.16287004]
[1688285238645,0.32762344,30531.0,30530.0,1.13684426]
[1688285238835,0.06775825,30531.0,30530.0,1.4888234]
[1688285239033,0.25279291,30531.0,30530.0,1.4888234]
[1688285239234,7.531e-05,30533.0,30530.0,1.47059371]
[1688285239435,7.531e-05,30533.0,30532.0,0.775552]
[1688285239843,7.531e-05,30533.0,30532.0,0.81263114]
[1688285240435,7.531e-05,30533.0,30532.0,0.25090145]
[1688285240641,0.34735075,30533.0,30532.0,0.232052]
[1688285240848,0.43205922,30533.0,30532.0,0.232052]
[1688285241051,0.34735075,30533.0,30532.0,0.232052]
[1688285243249,0.32769875,30533.0,30532.0,0.25090145]
[1688285243450,7.531e-05,30533.0,30532.0,0.25090145]
[1688285243649,7.531e-05,30533.0,30532.0,0.26913114]
[1688285244145,0.06783968,30533.0,30532.0,0.26913114]
[1688285244745,0.06783968,30533.0,30532.0,1.17343114]
[1688285247046,0.06776437,30533.0,30532.0,1.17343114]
[1688285248253,0.2946909,30533.0,30532.0,1.17343114]
[1688285248941,0.36245527,30533.0,30532.0,1.17343114]
[1688285249143,0.36245527,30533.0,30532.0,1.17685587]
[1688285250754,0.36245527,30533.0,30532.0,1.17343114]
[1688285256558,0.36245527,30533.0,30532.0,1.53423114]
[1688285256960,0.36245527,30533.0,30532.0,0.81263114]
[1688285257158,0.36245527,30533.0,30532.0,1.53423114]
[1688285262366,0.36245527,30533.0,30532.0,1.17343114]
[1688285266156,0.36245527,30533.0,30532.0,0.81263114]
[1688285266356,0.36245527,30533.0,30532.0,1.17343114]
[1688285268158,0.36245527,30533.0,30532.0,0.81263114]
[1688285268358,0.36245527,30533.0,30532.0,1.17343114]
[1688285271557,0.36245527,30533.0,30532.0,0.81263114]
[1688285271758,0.36245527,30533.0,30532.0,1.17343114]
[1688285271961,0.36245527,30533.0,30532.0,1.15520145]
[1688285272473,0.36245527,30533.0,30532.0,1.17343114]
[1688285273767,0.36245527,30533.0,30532.0,0.81263114]
[1688285274272,0.36245527,30533.0,30532.0,1.17343114]
[1688285278968,0.36245527,30533.0,30532.0,0.81263114]
[1688285279162,0.06776437,30533.0,30532.0,0.81263114]
[1688285279370,0.06776437,30533.0,30532.0,1.17343114]
[1688285280174,0.29482239,30533.0,30532.0,1.17343114]
[1688285280371,0.36258676,30533.0,30532.0,1.17343114]
[1688285281068,0.06776437,30533.0,30532.0,1.17343114]
[1688285283569,0.29485399,30533.0,30532.0,1.17343114]
[1688285283782,0.36261836,30533.0,30532.0,1.17343114]
[1688285286672,0.06776437,30533.0,30532.0,1.17343114]
[1688285288166,0.06776437,30533.0,30532.0,0.81263114]
[1688285288367,0.06776437,30533.0,30532.0,1.17343114]
[1688285288567,0.06776437,30533.0,30532.0,0.81263114]
[1688285288768,0.06776437,30533.0,30532.0,1.17343114]
[1688285292483,0.56128092,30539.0,30534.0,0.5435]
[1688285292777,0.56128092,30539.0,30538.0,0.2124]
[1688285292981,0.64597576,30539.0,30538.0,0.26912714]
[1688285293679,0.49549484,30539.0,30538.0,0.59232714]
[1688285294876,0.49549484,30539.0,30538.0,1.13582714]
[1688285297382,0.56325088,30539.0,30538.0,1.13582714]
[1688285299774,0.58289788,30539.0,30538.0,1.13582714]
[1688285299974,0.22209788,30539.0,30538.0,1.13582714]
[1688285302187,0.22209788,30539.0,30538.0,1.16162683]
[1688285305785,0.20245088,30539.0,30538.0,1.16162683]
[1688285309094,0.05,30539.0,30538.0,1.16162683]
[1688285309395,0.37735805,30539.0,30538.0,1.16162683]
[1688285309594,0.44511409,30539.0,30538.0,1.16162683]
[1688285314201,0.44511409,30539.0,30538.0,1.52242683]
[1688285316900,0.11775604,30539.0,30538.0,1.52242683]
[1688285319092,0.11775604,30539.0,30538.0,1.58762389]
[1688285319606,0.3189,30542.0,30539.0,0.01884945]
[1688285319899,0.3272388,30542.0,30541.0,0.622315]
[1688285320293,0.3272388,30542.0,30541.0,0.65939414]
[1688285320503,0.3272388,30542.0,30541.0,0.97009414]
[1688285322503,0.05,30543.0,30542.0,0.2124]
[1688285322697,0.05,30543.0,30542.0,0.46329545]
[1688285322998,0.05,30543.0,30542.0,0.48152514]
[1688285322999,0.1346822,30543.0,30542.0,0.48152514]
[1688285324505,0.13468179,30543.0,30542.0,0.48152514]
[1688285324803,0.05,30543.0,30542.0,0.84232514]
[1688285325008,0.05,30543.0,30542.0,0.48152514]
[1688285325205,0.05,30543.0,30542.0,0.84232514]
[1688285326406,0.05,30543.0,30542.0,1.38582514]
[1688285327809,0.396708,30543.0,30542.0,1.38582514]
[1688285328700,0.40250735,30543.0,30542.0,1.38582514]
[1688285329007,0.40549921,30543.0,30542.0,1.38582514]
[1688285329697,0.40549921,30543.0,30542.0,1.41229795]
[1688285329998,0.38585421,30543.0,30542.0,1.41229795]
[1688285330705,0.40549921,30543.0,30542.0,1.41229795]
[1688285333900,0.40549921,30543.0,30542.0,1.05149795]
[1688285334213,0.4901827,30543.0,30542.0,1.05149795]
[1688285334800,0.40549921,30543.0,30542.0,1.05149795]
[1688285336206,0.49018208,30543.0,30542.0,1.05149795]
[1688285338413,0.16311908,30543.0,30542.0,1.05149795]
[1688285338608,0.16311908,30543.0,30542.0,1.41229795]
[1688285340317,0.23086555,30543.0,30542.0,1.41229795]
[1688285342406,0.21122055,30543.0,30542.0,1.41229795]
[1688285343616,0.38599256,30543.0,30542.0,1.41229795]
[1688285343807,0.45373903,30543.0,30542.0,1.41229795]
[1688285344008,0.45373903,30543.0,30542.0,1.05149795]
[1688285344206,0.53842013,30543.0,30542.0,1.41229795]
[1688285344818,0.40373903,30543.0,30542.0,1.41229795]
[1688285345011,0.07653768,30543.0,30542.0,1.41229795]
[1688285353212,0.40373903,30543.0,30542.0,1.41229795]
[1688285354118,0.07653768,30543.0,30542.0,1.41229795]
[1688285354523,0.40373903,30543.0,30542.0,1.41229795]
[1688285355025,0.07653768,30543.0,30542.0,1.41229795]
[1688285355224,0.40373903,30543.0,30542.0,1.41229795]
[1688285355816,0.40373903,30543.0,30542.0,1.05149795]
[1688285356024,0.40373903,30543.0,30542.0,1.41229795]
[1688285362321,0.48841902,30543.0,30542.0,1.41229795]
[1688285362537,0.40373903,30543.0,30542.0,1.41229795]
[1688285364321,0.4884187,30543.0,30542.0,1.41229795]
[1688285364722,0.42067223,30543.0,30542.0,1.41229795]
[1688285365226,0.33599256,30543.0,30542.0,1.41229795]
[1688285365626,0.48841565,30543.0,30542.0,1.41229795]
[1688285367031,0.40373598,30543.0,30542.0,1.41229795]
[1688285367334,0.20048092,30547.0,30542.0,1.41229795]
[1688285367522,0.0065,30550.0,30546.0,0.232043]
[1688285367717,0.0065,30550.0,30548.0,0.409904]
[1688285367718,0.08467007,30549.0,30548.0,0.409904]
[1688285367924,0.08467007,30549.0,30548.0,0.833204]
[1688285368125,0.08467007,30549.0,30548.0,0.87028314]
[1688285369335,0.08467007,30549.0,30548.0,0.65798314]
[1688285369336,0.09163673,30549.0,30548.0,0.65798314]
[1688285375526,0.09163673,30549.0,30548.0,0.68482266]
[1688285376224,0.09163673,30549.0,30548.0,0.32402266]
[1688285376425,0.09163673,30549.0,30548.0,0.68482266]
[1688285376929,0.09163673,30549.0,30548.0,0.32402266]
[1688285377131,0.09163673,30549.0,30548.0,0.68482266]
[1688285381242,0.09163673,30549.0,30548.0,0.64753624]
[1688285381424,0.09163673,30549.0,30548.0,0.66576593]
[1688285383439,0.09163673,30549.0,30548.0,0.64753624]
[1688285385331,0.11127773,30549.0,30548.0,0.28673624]
[1688285387933,0.09163673,30549.0,30548.0,0.32381538]
[1688285389043,0.09163673,30549.0,30548.0,0.28673624]
[1688285390136,0.09163673,30549.0,30548.0,0.32381538]
[1688285393742,0.09163673,30549.0,30548.0,0.30558569]
[1688285393942,0.09163673,30549.0,30548.0,0.32381538]
[1688285394649,0.09163673,30549.0,30548.0,0.30558569]
[1688285395648,0.09163673,30549.0,30548.0,0.28665652]
[1688285396347,0.09163673,30549.0,30548.0,0.30550597]
[1688285396946,0.09163673,30549.0,30548.0,0.32373566]
[1688285397149,0.09163673,30549.0,30548.0,0.30550597]
[1688285398051,0.09163673,30549.0,30548.0,0.66630597]
[1688285398638,0.09163673,30549.0,30548.0,0.68453566]
[1688285398839,0.09163673,30549.0,30548.0,0.66630597]
[1688285399248,0.09163673,30549.0,30548.0,0.64745652]
[1688285400050,0.09163673,30549.0,30548.0,0.66630597]
[1688285400451,0.09163673,30549.0,30548.0,0.68453566]
[1688285400644,0.3315,30551.0,30548.0,0.89693566]
[1688285400952,0.3315,30551.0,30550.0,0.2124]
[1688285401244,0.35184,30552.0,30551.0,0.2124]
[1688285401449,0.35184,30552.0,30551.0,0.44444]
[1688285402238,0.3322,30552.0,30551.0,0.44444]
[1688285402446,0.3322,30552.0,30551.0,0.46328945]
[1688285402941,0.3322,30552.0,30551.0,0.48151914]
[1688285403543,0.41686491,30552.0,30551.0,0.48151914]
[1688285403848,0.41686491,30552.0,30551.0,0.46328945]
[1688285404045,0.08466491,30552.0,30551.0,0.48151914]
[1688285404251,0.08466491,30552.0,30551.0,0.46328945]
[1688285404553,0.08466491,30552.0,30551.0,0.82408945]
[1688285404852,0.08466491,30552.0,30551.0,0.84231914]
[1688285405952,0.09850862,30552.0,30551.0,0.84231914]
[1688285406856,0.11814762,30552.0,30551.0,0.84231914]
[1688285407250,0.09850862,30552.0,30551.0,0.84231914]
[1688285411655,0.09850862,30552.0,30551.0,0.82408945]
[1688285411854,0.09850862,30552.0,30551.0,0.84231914]
[1688285415856,0.09850862,30552.0,30551.0,1.38581914]
[1688285415857,0.0117241,30552.0,30551.0,1.38581914]
[1688285416052,0.04926986,30558.0,30551.0,1.38581914]
[1688285416053,0.15085786,30558.0,30551.0,1.98594]
[1688285416263,0.37356986,30558.0,30557.0,0.7856]
[1688285416553,0.04926986,30558.0,30557.0,0.805236]
[1688285416750,0.00017986,30558.0,30557.0,0.84231514]
[1688285417352,0.03084886,30558.0,30557.0,0.84231514]
[1688285417653,0.01121386,30558.0,30557.0,0.84231514]
[1688285419154,0.09586736,30558.0,30557.0,0.84231514]
[1688285419561,0.11550336,30558.0,30557.0,0.84231514]
[1688285423370,0.11550336,30558.0,30557.0,0.62991514]
[1688285424559,0.09586736,30558.0,30557.0,0.62991514]
[1688285427067,0.09586736,30558.0,30557.0,0.65649872]
[1688285428152,0.09586736,30558.0,30557.0,0.65642296]
[1688285428557,0.0957955,30558.0,30557.0,0.65642296]
[1688285432664,0.0957955,30558.0,30557.0,1.01729872]
[1688285435671,0.0847615,30558.0,30557.0,1.01729872]
[1688285439073,0.0847615,30558.0,30557.0,0.99906903]
[1688285439264,0.049087,30560.0,30558.0,0.01884945]
[1688285439460,0.049087,30560.0,30559.0,0.232035]
[1688285439775,0.049087,30560.0,30559.0,0.56406469]
[1688285439970,0.049087,30560.0,30559.0,0.58291414]
[1688285442280,0.08464673,30560.0,30559.0,0.58291414]
[1688285449370,0.08464673,30560.0,30559.0,0.94371414]
[1688285450879,0.10428073,30560.0,30559.0,0.906635]
[1688285452381,0.10428073,30560.0,30559.0,0.92486469]
[1688285452576,0.10428073,30560.0,30559.0,0.94371414]
[1688285453775,0.08464673,30560.0,30559.0,0.94371414]
[1688285454274,0.08464673,30560.0,30559.0,0.94348471]
[1688285454679,0.10428173,30560.0,30559.0,0.90640557]
[1688285457990,0.10428173,30560.0,30559.0,0.54560557]
[1688285458283,0.10428173,30560.0,30559.0,0.90640557]
[1688285458878,0.10428173,30560.0,30559.0,0.92463526]
[1688285459079,0.10428173,30560.0,30559.0,0.90640557]
[1688285459479,0.10428173,30560.0,30559.0,0.92463526]
[1688285459684,0.10428173,30560.0,30559.0,0.90640557]
[1688285461880,0.10428173,30560.0,30559.0,0.59260557]
[1688285462088,0.10428173,30560.0,30559.0,0.592835]
[1688285464889,0.10428173,30560.0,30559.0,0.232035]
[1688285466386,0.10428173,30560.0,30559.0,0.2124]
[1688285466593,0.10428173,30560.0,30559.0,0.09760294]
[1688285466594,0.11078173,30560.0,30559.0,0.09760294]
[1688285468184,0.32318173,30560.0,30559.0,0.09760294]
[1688285471502,0.31668173,30560.0,30559.0,0.09760294]
[1688285473286,0.10428173,30560.0,30559.0,0.09760294]
[1688285479186,0.10428173,30560.0,30559.0,0.09736454]
[1688285479795,0.10428173,30560.0,30559.0,0.11699954]
[1688285484188,0.10428173,30560.0,30559.0,0.47779954]
[1688285485112,0.10428173,30560.0,30559.0,0.51487868]
[1688285488399,0.10428173,30560.0,30559.0,0.49664899]
[1688285489094,0.10428173,30560.0,30559.0,0.47779954]
[1688285490491,0.10428173,30560.0,30559.0,0.49602923]
[1688285491001,0.10428173,30560.0,30559.0,0.47779954]
[1688285491207,0.10428173,30560.0,30559.0,0.49664899]
[1688285491708,0.10428173,30560.0,30559.0,0.47779954]
[1688285494906,0.10428173,30560.0,30559.0,0.380435]
[1688285495805,0.10428173,30560.0,30559.0,0.019635]
[1688285498213,0.10428173,30560.0,30559.0,0.03786469]
[1688285498803,0.10428173,30560.0,30559.0,0.05671414]
[1688285499614,0.10428173,30560.0,30559.0,0.03848445]
[1688285503008,0.10428173,30560.0,30559.0,0.03826041]
[1688285503806,0.10428173,30560.0,30559.0,0.0564901]
[1688285504008,0.10428173,30560.0,30559.0,0.03826041]
[1688285505099,0.10428173,30560.0,30559.0,0.0564901]
[1688285506608,0.10428173,30560.0,30559.0,0.03826041]
[1688285506916,0.10428173,30560.0,30559.0,0.0564901]
[1688285508409,0.08464673,30560.0,30559.0,0.0564901]
[1688285508713,0.08464673,30560.0,30559.0,0.08296532]
[1688285511320,0.10428173,30560.0,30559.0,0.08296532]
[1688285512312,0.10428173,30560.0,30559.0,0.06473563]
[1688285513221,0.10428173,30560.0,30559.0,0.08296532]
[1688285515015,0.10428173,30560.0,30559.0,0.06473563]
[1688285516117,0.10411685,30560.0,30559.0,0.06473563]
[1688285517120,0.10411685,30560.0,30559.0,0.08296532]
[1688285518226,0.10411685,30560.0,30559.0,0.06411587]
[1688285519125,0.10411685,30560.0,30559.0,0.04588618]
[1688285519620,0.10411685,30560.0,30559.0,0.06473563]
[1688285522413,0.10411685,30560.0,30559.0,0.08296532]
[1688285524027,0.10411685,30560.0,30559.0,0.06473563]
[1688285524415,0.10411685,30560.0,30559.0,0.08296532]
[1688285526722,0.10411685,30560.0,30559.0,0.06473563]
[1688285527427,0.10411685,30560.0,30559.0,0.08296532]
[1688285527632,0.10411685,30560.0,30559.0,0.06473563]
[1688285527928,0.10411685,30560.0,30559.0,0.08296532]
[1688285529117,0.10411685,30560.0,30559.0,0.06473563]
[1688285529826,0.10411685,30560.0,30559.0,0.08296532]
[1688285530221,0.10411685,30560.0,30559.0,0.08289572]
[1688285530730,0.10411685,30560.0,30559.0,0.06466603]
[1688285530920,0.10411685,30560.0,30559.0,0.04581658]
[1688285531822,0.10411685,30560.0,30559.0,0.02647522]
[1688285532221,0.10411685,30560.0,30558.0,0.019636]
[1688285532523,0.08448185,30559.0,30558.0,0.019636]
[1688285532729,0.10411685,30559.0,30558.0,0.019636]
[1688285534527,0.47141685,30559.0,30554.0,0.049097]
[1688285534825,0.47141685,30559.0,30555.0,0.019638]
[1688285534826,0.019637,30557.0,30555.0,0.019638]
[1688285535030,0.10411885,30556.0,30555.0,0.019638]
[1688285535432,0.08448185,30556.0,30555.0,0.380438]
[1688285535936,0.09948185,30556.0,30555.0,0.41751714]
[1688285538629,0.015,30556.0,30555.0,0.41751714]
[1688285542645,0.015,30556.0,30555.0,0.4174037]
[1688285543836,0.015,30556.0,30555.0,0.7782037]
[1688285544021,0.015,30556.0,30555.0,1.3282037]
[1688285545537,0.019636,30558.0,30555.0,1.3282037]
[1688285545837,0.019636,30558.0,30555.0,1.28462456]
[1688285546034,0.019636,30558.0,30557.0,0.5435]
[1688285546238,0.019636,30558.0,30557.0,0.563136]
[1688285546740,0.019636,30558.0,30557.0,0.60021514]
[1688285552334,0.019636,30558.0,30557.0,0.58198545]
[1688285552538,0.019636,30558.0,30557.0,0.563136]
[1688285552736,0.019636,30558.0,30557.0,0.58198545]
[1688285552930,0.019636,30558.0,30557.0,0.60021514]
[1688285553537,0.019636,30558.0,30557.0,0.58198545]
[1688285553841,0.019636,30558.0,30557.0,0.563136]
[1688285554345,0.019636,30558.0,30557.0,0.60021514]
[1688285554846,0.019636,30558.0,30557.0,0.96101514]
[1688285555040,0.019636,30558.0,30557.0,0.94278545]
[1688285555343,0.019636,30558.0,30557.0,0.96101514]
[1688285558139,0.019636,30558.0,30557.0,0.94278545]
[1688285559540,0.019636,30558.0,30557.0,0.96957741]
[1688285560041,0.019636,30558.0,30557.0,0.60877741]
[1688285560247,0.019636,30558.0,30557.0,0.6270071]
[1688285560436,0.019636,30558.0,30557.0,0.60877741]
[1688285560637,0.019636,30558.0,30557.0,0.58992796]
[1688285563038,0.019636,30558.0,30557.0,0.60877741]
[1688285563549,0.019636,30558.0,30557.0,0.6270071]
[1688285563737,0.019636,30558.0,30557.0,0.60877741]
[1688285564345,0.019636,30558.0,30557.0,0.6270071]
[1688285564547,0.019636,30558.0,30557.0,0.60877741]
[1688285564851,0.019636,30558.0,30557.0,0.58992796]
[1688285567249,0.019636,30558.0,30557.0,0.04642796]
[1688285574252,0.019636,30558.0,30557.0,0.06527741]
[1688285577857,0.019636,30558.0,30557.0,0.04642796]
[1688285578241,0.10428536,30558.0,30557.0,0.04642796]
[1688285580056,0.019636,30558.0,30557.0,0.04642796]
[1688285580651,0.019636,30558.0,30557.0,0.06465765]
[1688285580846,0.019636,30558.0,30557.0,0.04642796]
[1688285581242,0.019636,30558.0,30557.0,0.06465765]
[1688285581449,0.019636,30558.0,30557.0,0.0835071]
[1688285581956,0.019636,30558.0,30557.0,0.06527741]
[1688285582258,0.019636,30558.0,30557.0,0.0835071]
[1688285582663,0.019636,30558.0,30557.0,0.06527741]
[1688285583059,0.019636,30558.0,30557.0,0.0835071]
[1688285583655,0.019636,30558.0,30557.0,0.06465765]
[1688285583855,0.019636,30558.0,30557.0,0.04642796]
[1688285584257,0.019636,30558.0,30557.0,0.4443071]
[1688285586162,0.019636,30558.0,30557.0,0.42607741]
[1688285587146,0.019636,30558.0,30557.0,0.40722796]
[1688285587761,0.019636,30558.0,30557.0,0.42545765]
[1688285587962,0.019636,30558.0,30557.0,0.06465765]
[1688285588151,0.019636,30558.0,30557.0,0.42545765]
[1688285588352,0.019636,30558.0,30557.0,0.40722796]
[1688285592959,0.019636,30558.0,30557.0,0.42545765]
[1688285593462,0.019636,30558.0,30557.0,0.40722796]
[1688285595055,0.019636,30558.0,30557.0,0.42545765]
[1688285595263,0.019636,30558.0,30557.0,0.40722796]
[1688285595856,0.019636,30558.0,30557.0,0.04642796]
[1688285596058,0.019636,30558.0,30557.0,0.40722796]
[1688285598461,0.019636,30558.0,30557.0,0.42545765]
[1688285598859,0.019636,30558.0,30557.0,0.40722796]
[1688285599066,0.019636,30558.0,30557.0,0.42545765]
[1688285599261,0.019636,30558.0,30557.0,0.40722796]
[1688285600759,0.019636,30558.0,30557.0,0.42545765]
[1688285601364,0.019636,30558.0,30557.0,0.4443071]
[1688285602466,0.019636,30558.0,30557.0,0.42545765]
[1688285608071,0.019636,30558.0,30557.0,0.40722796]
[1688285608865,0.019636,30558.0,30557.0,0.4443071]
[1688285609974,0.019636,30558.0,30557.0,0.0835071]
[1688285610180,0.019636,30558.0,30557.0,0.4443071]
[1688285612274,0.019636,30558.0,30557.0,0.42545765]
[1688285613175,0.019636,30558.0,30557.0,0.4443071]
[1688285616479,0.019636,30558.0,30557.0,0.42545765]
[1688285620283,0.375205,30560.0,30557.0,0.42545765]
[1688285620486,0.08464645,30559.0,30557.0,0.42607741]
[1688285620685,0.375205,30560.0,30557.0,0.4443071]
[1688285620983,0.375205,30560.0,30557.0,0.42607741]
[1688285620984,0.10428145,30559.0,30557.0,0.42607741]
[1688285621184,0.019635,30559.0,30557.0,0.4443071]
[1688285621483,0.019635,30559.0,30557.0,0.42607741]
[1688285621784,0.019635,30559.0,30557.0,0.40722796]